fUSD/lending_fUSD_20250610
["ID","MTS","AMOUNT","RATE_DAILY","PERIOD"]
[365268594,1749570647051,-151.0,0.00017423,2]
[365268596,1749570647062,-151.0,0.00017423,2]
[365268598,1749570647072,-151.0,0.00017423,2]
[365268600,1749570647082,-151.0,0.00017423,2]
[365268603,1749570647092,-151.0,0.00017423,2]
[365268605,1749570647102,-1951.54759,0.00017423,2]
[365268607,1749570647112,-151.0,0.00017423,2]
[365268609,1749570647122,-151.0,0.00017423,2]
[365268611,1749570647132,-151.0,0.00017423,2]
[365268613,1749570647142,-151.0,0.00017423,2]
[365268615,1749570647153,-157.378676,0.00017423,2]
[365268617,1749570647163,-157.378676,0.00017423,2]
[365268619,1749570647174,-281.884335,0.00017423,2]
[365268621,1749570647186,-151.0,0.00017423,2]
[365268623,1749570647196,-836.130337,0.00017423,2]
[365268625,1749570647206,-836.130337,0.00017423,2]
[365268627,1749570647216,-151.0,0.00017423,2]
[365268629,1749570647226,-158.450287,0.00017424,2]
[365268631,1749570647235,-158.450287,0.00017424,2]
[365268633,1749570647245,-151.0,0.00017424,2]
[365268634,1749570647255,-151.0,0.00017424,2]
[365268635,1749570647265,-227.857062,0.00017424,2]
[365268636,1749570647274,-151.0,0.00017424,2]
[365268637,1749570647283,-401.88123,0.00017424,2]
[365268638,1749570647293,-401.88123,0.00017424,2]
[365268639,1749570647302,-242.781358,0.00017424,2]
[365268640,1749570647311,-151.0,0.00017424,2]
[365268641,1749570647321,-151.0,0.00017424,2]
[365268642,1749570647330,-151.0,0.00017424,2]
[365268643,1749570647339,-151.0,0.00017424,2]
[365268645,1749570647349,-156.900628,0.00017424,2]
[365268646,1749570647358,-151.0,0.00017424,2]
[365268648,1749570647368,-151.0,0.00017424,2]
[365268650,1749570647377,-151.0,0.00017424,2]
[365268653,1749570647387,-151.562397,0.00017424,2]
[365268655,1749570647397,-283.910702,0.00017424,2]
[365268657,1749570647406,-283.910702,0.00017424,2]
[365268659,1749570647415,-151.0,0.00017424,2]
[365268661,1749570647425,-151.0,0.00017424,2]
[365268663,1749570647435,-151.0,0.00017424,2]
[365268665,1749570647445,-409.68,0.00017424,2]
[365268667,1749570647454,-409.68,0.00017424,2]
[365268669,1749570647464,-151.0,0.00017424,2]
[365268671,1749570647474,-151.0,0.00017424,2]
[365268673,1749570647486,-151.0,0.00017424,2]
[365268675,1749570647496,-151.0,0.00017424,2]
[365268677,1749570647505,-151.0,0.00017424,2]
[365268679,1749570647515,-151.0,0.00017424,2]
[365268681,1749570647524,-151.0,0.00017424,2]
[365268683,1749570647534,-151.0,0.00017424,2]
[365268685,1749570647544,-151.0,0.00017424,2]
[365268687,1749570647555,-151.0,0.00017424,2]
[365268689,1749570647564,-212.855355,0.00017424,2]
[365268691,1749570647574,-212.855355,0.00017424,2]
[365268693,1749570647584,-162.517009,0.00017424,2]
[365268695,1749570647594,-162.517009,0.00017424,2]
[365268697,1749570647604,-532.008873,0.00017424,2]
[365268699,1749570647614,-532.008873,0.00017424,2]
[365268701,1749570647623,-151.0,0.00017424,2]
[365268703,1749570647634,-151.0,0.00017424,2]
[365268706,1749570647644,-170.29964,0.00017424,2]
[365268708,1749570647654,-170.29964,0.00017424,2]
[365268710,1749570647664,-230.472563,0.00017424,2]
[365268712,1749570647674,-151.0,0.00017424,2]
[365268714,1749570647683,-223.704309,0.00017424,2]
[365268716,1749570647693,-151.0,0.00017424,2]
[365268718,1749570647703,-151.0,0.00017424,2]
[365268720,1749570647712,-151.0,0.00017424,2]
[365268722,1749570647722,-151.0,0.00017424,2]
[365268724,1749570647731,-151.0,0.00017424,2]
[365268726,1749570647741,-151.0,0.00017424,2]
[365268728,1749570647750,-151.0,0.00017424,2]
[365268730,1749570647760,-151.0,0.00017424,2]
[365268732,1749570647770,-151.0,0.00017424,2]
[365268734,1749570647780,-151.0,0.00017424,2]
[365268736,1749570647789,-152.267092,0.00017424,2]
[365268738,1749570647799,-388.714748,0.00017424,2]
[365268740,1749570647808,-388.714748,0.00017424,2]
[365268742,1749570647818,-388.714748,0.00017424,2]
[365268744,1749570647827,-388.714748,0.00017424,2]
[365268746,1749570647837,-151.0,0.00017424,2]
[365268748,1749570647847,-174.825088,0.00017424,2]
[365268750,1749570647856,-190.369157,0.00017424,2]
[365268752,1749570647866,-190.369157,0.00017424,2]
[365268754,1749570647875,-151.0,0.00017424,2]
[365268756,1749570647885,-190.369157,0.00017424,2]
[365268758,1749570647895,-190.369157,0.00017424,2]
[365268760,1749570647904,-151.0,0.00017424,2]
[365268762,1749570647914,-151.0,0.00017424,2]
[365268764,1749570647923,-472.618288,0.00017424,2]
[365268766,1749570647933,-472.618288,0.00017424,2]
[365268768,1749570647944,-151.0,0.00017424,2]
[365268770,1749570647954,-151.0,0.00017424,2]
[365268772,1749570647964,-151.0,0.00017424,2]
[365268774,1749570647973,-152.942544,0.00017424,2]
[365268776,1749570647983,-152.942544,0.00017424,2]
[365268778,1749570647993,-152.942544,0.00017424,2]
[365268780,1749570648003,-152.942544,0.00017424,2]
[365268782,1749570648013,-354.435439,0.00017424,2]
[365268784,1749570648023,-354.435439,0.00017424,2]
[365268786,1749570648033,-151.0,0.00017424,2]
[365268788,1749570648044,-151.0,0.00017424,2]
[365268790,1749570648053,-490.0,0.00017424,2]
[365268792,1749570648064,-9047.825904,0.00017424,2]
[365268794,1749570648074,-9047.825904,0.00017424,2]
[365268796,1749570648084,-210.111853,0.00017424,2]
[365268799,1749570648093,-490.0,0.00017424,2]
[365268801,1749570648103,-210.111853,0.00017424,2]
[365268803,1749570648113,-490.0,0.00017424,2]
[365268805,1749570648123,-151.0,0.00017424,2]
[365268807,1749570648132,-151.0,0.00017424,2]
[365268809,1749570648142,-235.509538,0.00017424,2]
[365268811,1749570648152,-235.509538,0.00017424,2]
[365268813,1749570648161,-154.80474,0.00017424,2]
[365268815,1749570648171,-601.86965092,0.00017424,2]
[365268817,1749570648181,-697.225594,0.00017424,2]
[365268819,1749570648190,-697.225594,0.00017424,2]
[365268821,1749570648200,-227.628302,0.00017424,2]
[365268823,1749570648210,-227.628302,0.00017424,2]
[365268825,1749570648220,-151.0,0.00017424,2]
[365268827,1749570648230,-490.0,0.00017424,2]
[365268829,1749570648241,-603.49,0.00017424,2]
[365268831,1749570648250,-151.0,0.00017424,2]
[365268833,1749570648260,-490.0,0.00017424,2]
[365268835,1749570648271,-642.66,0.00017424,2]
[365268837,1749570648280,-490.0,0.00017424,2]
[365268839,1749570648290,-983.05,0.00017424,2]
[365268841,1749570648300,-151.0,0.00017424,2]
[365268843,1749570648309,-490.0,0.00017424,2]
[365268845,1749570648319,-980.31,0.00017424,2]
[365268847,1749570648329,-490.0,0.00017424,2]
[365268849,1749570648339,-490.0,0.00017424,2]
[365268852,1749570648349,-216.607352,0.00017424,2]
[365268854,1749570648359,-490.0,0.00017424,2]
[365268856,1749570648368,-490.0,0.00017424,2]
[365268858,1749570648378,-216.607352,0.00017424,2]
[365268860,1749570648388,-2100.58,0.00017424,2]
[365268862,1749570648398,-490.0,0.00017424,2]
[365268864,1749570648408,-490.0,0.00017424,2]
[365268866,1749570648417,-490.0,0.00017424,2]
[365268868,1749570648427,-490.0,0.00017424,2]
[365268870,1749570648437,-612.37,0.00017424,2]
[365268872,1749570648447,-547.944185,0.00017424,2]
[365268874,1749570648457,-547.944185,0.00017424,2]
[365268876,1749570648468,-490.0,0.00017424,2]
[365268878,1749570648480,-490.0,0.00017424,2]
[365268880,1749570648490,-490.0,0.00017424,2]
[365268882,1749570648500,-520.05,0.00017424,2]
[365268884,1749570648511,-1277.47,0.00017424,2]
[365268886,1749570648520,-2101.06,0.00017424,2]
[365268888,1749570648531,-1048.02,0.00017424,2]
[365268890,1749570648542,-490.0,0.00017424,2]
[365268892,1749570648553,-490.0,0.00017424,2]
[365268916,1749570648795,-490.0,0.00017424,2]
[365268918,1749570648837,-490.0,0.00017424,2]
[365268920,1749570648848,-490.0,0.00017424,2]
[365268922,1749570648860,-9735.04,0.00017424,2]
[365268924,1749570648871,-490.0,0.00017424,2]
[365268926,1749570648882,-490.0,0.00017424,2]
[365268928,1749570648893,-490.0,0.00017424,2]
[365268930,1749570648904,-490.0,0.00017424,2]
[365268931,1749570648915,-1958.36,0.00017424,2]
[365268933,1749570648925,-505.2,0.00017424,2]
[365268935,1749570648935,-490.0,0.00017424,2]
[365268937,1749570648950,-251.287677,0.00017435,2]
[365268939,1749570648961,-251.287677,0.00017435,2]
[365268941,1749570648972,-151.0,0.00017438,2]
[365268942,1749570648982,-151.270907,0.00017439,2]
[365268944,1749570648991,-258.876173,0.00017439,2]
[365268946,1749570649001,-258.876173,0.00017439,2]
[365268948,1749570649012,-151.0,0.00017439,2]
[365268950,1749570649022,-196.879594,0.00017439,2]
[365268951,1749570649032,-196.879594,0.00017439,2]
[365268953,1749570649043,-151.0,0.00017439,2]
[365268955,1749570649053,-151.0,0.00017439,2]
[365268957,1749570649062,-151.0,0.00017439,2]
[365268958,1749570649072,-151.0,0.00017439,2]
[365268960,1749570649081,-157.378676,0.00017439,2]
[365268962,1749570649091,-157.378676,0.00017439,2]
[365268964,1749570649101,-836.130337,0.00017439,2]
[365268965,1749570649110,-836.130337,0.00017439,2]
[365268967,1749570649120,-151.0,0.00017439,2]
[365268969,1749570649130,-151.0,0.00017471,2]
[365268971,1749570649139,-151.0,0.00017471,2]
[365268973,1749570649149,-189.770774,0.00017471,2]
[365268975,1749570649158,-301.004698,0.00017471,2]
[365268977,1749570649168,-301.004698,0.00017471,2]
[365268978,1749570649178,-1168.379888,0.000175,2]
[365268980,1749570649190,-151.0,0.000175,2]
[365268982,1749570649200,-151.0,0.00017525,2]
[365268984,1749570649210,-151.0,0.00017525,2]
[365268986,1749570649219,-388.714748,0.00017525,2]
[365268988,1749570649229,-388.714748,0.00017525,2]
[365268989,1749570649239,-190.369157,0.00017525,2]
[365268991,1749570649248,-190.369157,0.00017525,2]
[365268993,1749570649258,-151.0,0.00017525,2]
[365268995,1749570649268,-152.942544,0.00017525,2]
[365268997,1749570649279,-152.942544,0.00017525,2]
[365268999,1749570649289,-151.0,0.00017532,2]
[365269001,1749570649299,-151.0,0.00017532,2]
[365269003,1749570649308,-151.0,0.00017532,2]
[365269004,1749570649318,-492.0,0.00017547,2]
[365269006,1749570649328,-796.87,0.0001756,2]
[365269008,1749570649338,-796.87,0.0001756,2]
[365269010,1749570649348,-151.0,0.0001756,2]
[365269012,1749570649358,-151.0,0.0001756,2]
[365269014,1749570649368,-273.470383,0.0001756,2]
[365269015,1749570649379,-151.0,0.0001756,2]
[365269017,1749570649388,-151.0,0.0001756,2]
[365269019,1749570649398,-151.0,0.0001756,2]
[365269021,1749570649408,-547.944185,0.0001756,2]
[365269023,1749570649418,-547.944185,0.0001756,2]
[365269025,1749570649428,-492.0,0.00017581,2]
[365269026,1749570649439,-483.93,0.00017588,2]
[365269028,1749570649448,-500.0,0.00017588,2]
[365269030,1749570649458,-500.0,0.00017588,2]
[365269032,1749570649468,-477.72756888,0.00017588,2]
[365269034,1749570649479,-151.0,0.00017589,2]
[365269036,1749570649490,-151.0,0.00017589,2]
[365269038,1749570649501,-151.0,0.00017589,2]
[365269039,1749570649511,-401.88123,0.00017589,2]
[365269041,1749570649520,-401.88123,0.00017589,2]
[365269043,1749570649530,-151.0,0.00017589,2]
[365269045,1749570649540,-151.0,0.00017589,2]
[365269047,1749570649549,-151.0,0.00017589,2]
[365269049,1749570649559,-151.0,0.00017589,2]
[365269051,1749570649569,-151.0,0.00017589,2]
[365269052,1749570649579,-151.0,0.00017589,2]
[365269054,1749570649588,-151.0,0.00017589,2]
[365269056,1749570649599,-151.308029,0.00017589,2]
[365269058,1749570649609,-151.0,0.00017589,2]
[365269060,1749570649618,-151.0,0.00017589,2]
[365269062,1749570649628,-151.0,0.00017589,2]
[365269063,1749570649637,-221.021588,0.00017589,2]
[365269065,1749570649647,-273.622342,0.00017589,2]
[365269067,1749570649657,-273.622342,0.00017589,2]
[365269069,1749570649667,-151.0,0.00017589,2]
[365269071,1749570649676,-1951.54759,0.00017589,2]
[365269073,1749570649685,-152.202376,0.00017589,2]
[365269074,1749570649696,-151.0,0.00017589,2]
[365269076,1749570649706,-151.0,0.00017589,2]
[365269078,1749570649715,-151.0,0.00017589,2]
[365269080,1749570649725,-151.0,0.00017589,2]
[365269082,1749570649734,-151.0,0.00017589,2]
[365269084,1749570649743,-409.68,0.00017589,2]
[365269085,1749570649753,-409.68,0.00017589,2]
[365269087,1749570649762,-151.0,0.00017589,2]
[365269089,1749570649772,-151.0,0.00017589,2]
[365269091,1749570649781,-151.0,0.00017589,2]
[365269093,1749570649791,-151.0,0.00017589,2]
[365269095,1749570649800,-185.297523,0.00017589,2]
[365269097,1749570649811,-151.0,0.00017589,2]
[365269098,1749570649820,-162.517009,0.00017589,2]
[365269100,1749570649830,-162.517009,0.00017589,2]
[365269102,1749570649840,-532.008873,0.00017589,2]
[365269104,1749570649849,-532.008873,0.00017589,2]
[365269106,1749570649859,-151.0,0.00017589,2]
[365269108,1749570649869,-170.29964,0.00017589,2]
[365269109,1749570649878,-170.29964,0.00017589,2]
[365269111,1749570649888,-151.0,0.00017589,2]
[365269113,1749570649898,-174.243423,0.00017589,2]
[365269115,1749570649908,-151.0,0.00017589,2]
[365269117,1749570649917,-151.0,0.00017589,2]
[365269119,1749570649926,-151.0,0.00017589,2]
[365269121,1749570649935,-151.0,0.00017589,2]
[365269122,1749570649946,-151.0,0.00017589,2]
[365269124,1749570649955,-151.0,0.00017589,2]
[365269126,1749570649965,-151.0,0.00017589,2]
[365269128,1749570649974,-151.0,0.00017589,2]
[365269130,1749570649983,-151.0,0.00017589,2]
[365269132,1749570649993,-151.0,0.00017589,2]
[365269133,1749570650003,-151.0,0.00017589,2]
[365269135,1749570650012,-151.0,0.00017589,2]
[365269137,1749570650022,-472.618288,0.00017589,2]
[365269139,1749570650032,-472.618288,0.00017589,2]
[365269141,1749570650041,-151.0,0.00017589,2]
[365269143,1749570650051,-151.0,0.00017589,2]
[365269145,1749570650060,-151.0,0.00017589,2]
[365269146,1749570650070,-151.0,0.00017589,2]
[365269148,1749570650079,-151.0,0.00017589,2]
[365269150,1749570650088,-152.942544,0.00017589,2]
[365269152,1749570650097,-152.942544,0.00017589,2]
[365269154,1749570650107,-354.435439,0.00017589,2]
[365269155,1749570650117,-354.435439,0.00017589,2]
[365269157,1749570650126,-151.0,0.00017589,2]
[365269159,1749570650136,-151.0,0.00017589,2]
[365269161,1749570650145,-153.665779,0.00017589,2]
[365269163,1749570650155,-151.0,0.00017589,2]
[365269165,1749570650164,-490.0,0.00017589,2]
[365269166,1749570650174,-9047.825904,0.00017589,2]
[365269168,1749570650183,-9047.825904,0.00017589,2]
[365269170,1749570650195,-210.111853,0.00017589,2]
[365269171,1749570650205,-490.0,0.00017589,2]
[365269172,1749570650213,-210.111853,0.00017589,2]
[365269173,1749570650223,-490.0,0.00017589,2]
[365269174,1749570650232,-301.004698,0.00017589,2]
[365269175,1749570650241,-301.004698,0.00017589,2]
[365269176,1749570650250,-151.0,0.00017589,2]
[365269177,1749570650259,-155.744627,0.00017589,2]
[365269178,1749570650268,-235.509538,0.00017589,2]
[365269179,1749570650277,-235.509538,0.00017589,2]
[365269180,1749570650287,-1168.379888,0.00017589,2]
[365269181,1749570650296,-151.0,0.00017589,2]
[365269182,1749570650306,-151.0,0.00017589,2]
[365269183,1749570650315,-697.225594,0.00017589,2]
[365269184,1749570650325,-697.225594,0.00017589,2]
[365269185,1749570650334,-227.628302,0.00017589,2]
[365269186,1749570650344,-227.628302,0.00017589,2]
[365269187,1749570650354,-151.0,0.00017589,2]
[365269189,1749570650363,-151.0,0.00017589,2]
[365269190,1749570650376,-337.41,0.00017589,2]
[365269192,1749570650386,-603.49,0.00017589,2]
[365269194,1749570650396,-490.0,0.00017589,2]
[365269196,1749570650405,-642.66,0.00017589,2]
[365269198,1749570650415,-490.0,0.00017589,2]
[365269200,1749570650424,-157.378676,0.00017589,2]
[365269202,1749570650434,-157.378676,0.00017589,2]
[365269204,1749570650447,-983.05,0.00017589,2]
[365269207,1749570650456,-490.0,0.00017589,2]
[365269209,1749570650467,-151.0,0.00017589,2]
[365269211,1749570650477,-980.31,0.00017589,2]
[365269213,1749570650489,-490.0,0.00017589,2]
[365269214,1749570650498,-490.0,0.00017589,2]
[365269216,1749570650508,-490.0,0.00017589,2]
[365269218,1749570650518,-216.607352,0.00017589,2]
[365269221,1749570650529,-490.0,0.00017589,2]
[365269223,1749570650538,-216.607352,0.00017589,2]
[365269225,1749570650548,-2100.58,0.00017589,2]
[365269227,1749570650558,-490.0,0.00017589,2]
[365269229,1749570650568,-490.0,0.00017589,2]
[365269231,1749570650577,-490.0,0.00017589,2]
[365269233,1749570650586,-490.0,0.00017589,2]
[365269235,1749570650595,-612.37,0.00017589,2]
[365269237,1749570650605,-626.14,0.00017589,2]
[365269239,1749570650614,-490.0,0.00017589,2]
[365269241,1749570650624,-490.0,0.00017589,2]
[365269243,1749570650633,-520.05,0.00017589,2]
[365269245,1749570650643,-1277.47,0.00017589,2]
[365269247,1749570650652,-2101.06,0.00017589,2]
[365269249,1749570650662,-1048.02,0.00017589,2]
[365269251,1749570650672,-490.0,0.00017589,2]
[365269253,1749570650681,-490.0,0.00017589,2]
[365269255,1749570650694,-324.43,0.00017589,2]
[365269257,1749570650704,-490.0,0.00017589,2]
[365269259,1749570650714,-490.0,0.00017589,2]
[365269261,1749570650723,-9735.04,0.00017589,2]
[365269263,1749570650733,-836.130337,0.00017589,2]
[365269265,1749570650742,-490.0,0.00017589,2]
[365269267,1749570650752,-836.130337,0.00017589,2]
[365269269,1749570650762,-490.0,0.00017589,2]
[365269271,1749570650771,-151.0,0.00017589,2]
[365269273,1749570650780,-490.0,0.00017589,2]
[365269275,1749570650790,-490.0,0.00017589,2]
[365269276,1749570650800,-1958.36,0.00017589,2]
[365269278,1749570650810,-505.2,0.00017589,2]
[365269281,1749570650820,-490.0,0.00017589,2]
[365269282,1749570650830,-151.0,0.0001759,2]
[365269284,1749570650839,-151.0,0.0001759,2]
[365269287,1749570650853,-388.714748,0.0001759,2]
[365269289,1749570650862,-388.714748,0.0001759,2]
[365269291,1749570650872,-190.369157,0.0001759,2]
[365269293,1749570650882,-190.369157,0.0001759,2]
[365269295,1749570650892,-492.0,0.00017614,2]
[365269297,1749570650902,-212.855355,0.00017624,2]
[365269299,1749570650911,-212.855355,0.00017624,2]
[365269301,1749570650921,-151.0,0.00017636,2]
[365269303,1749570650930,-151.0,0.00017636,2]
[365269305,1749570650941,-279.64556709,0.00017636,2]
[365269307,1749570650950,-283.910702,0.00017636,2]
[365269309,1749570650960,-283.910702,0.00017636,2]
[365269311,1749570650970,-151.0,0.00017636,2]
[365269313,1749570650980,-232.507636,0.00017636,2]
[365269315,1749570650989,-151.0,0.00017636,2]
[365269317,1749570650999,-212.855355,0.00017636,2]
[365269319,1749570651008,-212.855355,0.00017636,2]
[365269321,1749570651018,-162.517009,0.00017636,2]
[365269323,1749570651028,-162.517009,0.00017636,2]
[365269325,1749570651037,-170.29964,0.00017636,2]
[365269327,1749570651047,-170.29964,0.00017636,2]
[365269329,1749570651057,-251.287677,0.00017653,2]
[365269331,1749570651066,-251.287677,0.00017653,2]
[365269333,1749570651075,-843.4096823,0.00017666,2]
[365269335,1749570651085,-375.49,0.00017683,2]
[365269337,1749570651095,-151.0,0.00017683,2]
[365269339,1749570651104,-547.944185,0.00017683,2]
[365269341,1749570651114,-547.944185,0.00017683,2]
[365269343,1749570651123,-151.0,0.000177,2]
[365269345,1749570651132,-151.0,0.000177,2]
[365269347,1749570651143,-152.34737,0.000177,2]
[365269357,1749570651226,-151.0,0.000177,2]
[365269359,1749570651236,-151.0,0.000177,2]
[365269361,1749570651244,-151.0,0.000177,2]
[365269363,1749570651254,-151.0,0.000177,2]
[365269365,1749570651263,-151.0,0.000177,2]
[365269367,1749570651272,-151.0,0.000177,2]
[365269369,1749570651281,-216.607352,0.000177,2]
[365269371,1749570651291,-216.607352,0.000177,2]
[365269373,1749570651300,-7593.06902641,0.000177,2]
[365269375,1749570651309,-250.0,0.00017721,2]
[365269377,1749570651318,-250.0,0.00017721,2]
[365269379,1749570651328,-151.0,0.00017752,2]
[365269381,1749570651337,-151.0,0.00017752,2]
[365269383,1749570651346,-151.0,0.00017752,2]
[365269385,1749570651355,-151.0,0.00017752,2]
[365269387,1749570651364,-409.68,0.00017752,2]
[365269389,1749570651374,-409.68,0.00017752,2]
[365269391,1749570651383,-151.0,0.00017752,2]
[365269393,1749570651392,-151.0,0.00017752,2]
[365269395,1749570651402,-151.0,0.00017752,2]
[365269397,1749570651411,-151.0,0.00017752,2]
[365269399,1749570651421,-151.0,0.00017752,2]
[365269401,1749570651431,-532.008873,0.00017752,2]
[365269403,1749570651442,-532.008873,0.00017752,2]
[365269405,1749570651451,-151.0,0.00017752,2]
[365269407,1749570651460,-151.0,0.00017752,2]
[365269409,1749570651470,-151.0,0.00017752,2]
[365269411,1749570651481,-247.381337,0.00017752,2]
[365269413,1749570651490,-151.0,0.00017752,2]
[365269415,1749570651500,-151.0,0.00017752,2]
[365269417,1749570651510,-472.618288,0.00017752,2]
[365269419,1749570651519,-472.618288,0.00017752,2]
[365269421,1749570651529,-354.435439,0.00017752,2]
[365269423,1749570651538,-354.435439,0.00017752,2]
[365269425,1749570651547,-151.0,0.00017752,2]
[365269427,1749570651558,-9047.825904,0.00017752,2]
[365269429,1749570651567,-9047.825904,0.00017752,2]
[365269431,1749570651576,-158.450287,0.00017753,2]
[365269433,1749570651585,-158.450287,0.00017753,2]
[365269435,1749570651595,-151.0,0.00017753,2]
[365269437,1749570651605,-151.0,0.00017753,2]
[365269439,1749570651615,-151.0,0.00017753,2]
[365269441,1749570651624,-401.88123,0.00017753,2]
[365269443,1749570651633,-401.88123,0.00017753,2]
[365269445,1749570651642,-151.0,0.00017753,2]
[365269447,1749570651652,-151.0,0.00017753,2]
[365269449,1749570651661,-175.74205,0.00017753,2]
[365269451,1749570651670,-151.0,0.00017753,2]
[365269453,1749570651679,-151.0,0.00017753,2]
[365269455,1749570651690,-151.0,0.00017753,2]
[365269457,1749570651699,-151.0,0.00017753,2]
[365269459,1749570651710,-151.0,0.00017753,2]
[365269461,1749570651720,-151.0,0.00017753,2]
[365269462,1749570651730,-151.0,0.00017753,2]
[365269464,1749570651741,-273.622342,0.00017753,2]
[365269466,1749570651751,-273.622342,0.00017753,2]
[365269468,1749570651762,-151.0,0.00017753,2]
[365269470,1749570651773,-258.876173,0.00017753,2]
[365269472,1749570651783,-1951.54759,0.00017753,2]
[365269474,1749570651794,-258.876173,0.00017753,2]
[365269476,1749570651805,-151.0,0.00017753,2]
[365269478,1749570651817,-151.0,0.00017753,2]
[365269480,1749570651828,-196.879594,0.00017753,2]
[365269483,1749570651838,-196.879594,0.00017753,2]
[365269485,1749570651850,-251.287677,0.00017753,2]
[365269487,1749570651860,-251.287677,0.00017753,2]
[365269489,1749570651872,-151.0,0.00017753,2]
[365269491,1749570651882,-151.0,0.00017753,2]
[365269493,1749570651892,-166.687273,0.00017753,2]
[365269495,1749570651902,-151.0,0.00017753,2]
[365269497,1749570651912,-151.0,0.00017753,2]
[365269498,1749570651922,-151.0,0.00017753,2]
[365269500,1749570651932,-151.0,0.00017753,2]
[365269502,1749570651946,-151.0,0.00017753,2]
[365269504,1749570651959,-151.0,0.00017753,2]
[365269506,1749570651970,-151.0,0.00017753,2]
[365269508,1749570651980,-151.0,0.00017753,2]
[365269510,1749570651990,-151.0,0.00017753,2]
[365269512,1749570652000,-151.0,0.00017753,2]
[365269514,1749570652010,-388.714748,0.00017753,2]
[365269516,1749570652019,-388.714748,0.00017753,2]
[365269518,1749570652029,-190.369157,0.00017753,2]
[365269520,1749570652040,-190.369157,0.00017753,2]
[365269522,1749570652049,-151.0,0.00017753,2]
[365269524,1749570652059,-159.999634,0.00017753,2]
[365269526,1749570652068,-151.0,0.00017753,2]
[365269528,1749570652077,-151.0,0.00017753,2]
[365269530,1749570652087,-151.0,0.00017753,2]
[365269532,1749570652097,-152.942544,0.00017753,2]
[365269534,1749570652106,-152.942544,0.00017753,2]
[365269536,1749570652116,-151.0,0.00017753,2]
[365269538,1749570652125,-490.0,0.00017753,2]
[365269540,1749570652135,-490.0,0.00017753,2]
[365269541,1749570652144,-210.111853,0.00017753,2]
[365269543,1749570652153,-210.111853,0.00017753,2]
[365269545,1749570652163,-490.0,0.00017753,2]
[365269547,1749570652173,-301.004698,0.00017753,2]
[365269549,1749570652182,-301.004698,0.00017753,2]
[365269551,1749570652194,-151.0,0.00017753,2]
[365269553,1749570652203,-235.509538,0.00017753,2]
[365269555,1749570652211,-235.509538,0.00017753,2]
[365269557,1749570652220,-1168.379888,0.00017753,2]
[365269559,1749570652230,-151.0,0.00017753,2]
[365269561,1749570652242,-151.0,0.00017753,2]
[365269563,1749570652251,-697.225594,0.00017753,2]
[365269565,1749570652261,-697.225594,0.00017753,2]
[365269567,1749570652270,-227.628302,0.00017753,2]
[365269569,1749570652280,-227.628302,0.00017753,2]
[365269571,1749570652289,-151.0,0.00017753,2]
[365269573,1749570652298,-151.0,0.00017753,2]
[365269575,1749570652308,-603.49,0.00017753,2]